Workbook

Sheet DB (hidden)
A2: 1 | B2: 59 | C2: D | D2: belum menunjukkan pemahaman yang cukup pada sebagian besar materi Pendidikan Lingkungan Hidup
A3: 60 | B3: 69 | C3: C | D3: sudah menunjukkan pemahaman yang cukup pada semua materi Pendidikan Lingkungan Hidup
A4: 70 | B4: 74 | C4: B- | D4: secara konsisten menunjukkan pemahaman yang mendalam pada sebagian materi Pendidikan Lingkungan Hidup
A5: 75 | B5: 79 | C5: B | D5: secara konsisten menunjukkan pemahaman yang mendalam pada sebagian materi Pendidikan Lingkungan Hidup
A6: 80 | B6: 84 | C6: B+ | D6: secara konsisten menunjukkan pemahaman yang mendalam pada sebagian materi Pendidikan Lingkungan Hidup
A7: 85 | B7: 89 | C7: A- | D7: secara konsisten menunjukkan pemahaman yang mendalam pada semua materi Pendidikan Lingkungan Hidup
A8: 90 | B8: 94 | C8: A | D8: secara konsisten menunjukkan pemahaman yang mendalam pada semua materi Pendidikan Lingkungan Hidup
A9: 95 | B9: 100 | C9: A+ | D9: secara konsisten menunjukkan pemahaman yang mendalam pada semua materi Pendidikan Lingkungan Hidup
A12: X TKP 1 | B12: Rini Anggraeni, S.Pd, M.Pd
A13: X TKP 2 | B13: Nuri Hastuti Nuryani, S.Pd
A14: X TK 1 | B14: Deden Hamdani, Drs.
A15: X TK 2 | B15: Zian Muzakkiyah K, S.Pd, M.Pd
A16: X TM 1 | B16: Hj. Diah Gustanti, S.T
A17: X TM 2 | B17: Tamrin, Drs, M.Pd
A18: X TM 3 | B18: Suhartini, S.Pd
A19: X TM 4 | B19: Maolana Nopiansyah, s.Pd.I
A20: X TM 5 | B20: Siti Nurjanah, S.Pd
A21: X TM 6 | B21: Prapti Suharyanti, S.Pd
A22: X TM 7 | B22: Tri Puji Astuti, S.Pd
A23: X TM 8 | B23: Rini Nurmalasari, S.Pd
A24: X TO 1 | B24: Kusmaya, S.Pd
A25: X TO 2 | B25: Rika Nurlaela, S.Pd
A26: X TO 3 | B26: Saeful Ikhrom, A.Md
A27: X TO 4 | B27: Sumarsono, S.T
A28: X TE 1 | B28: Ida Farida Artati
A29: X TE 2 | B29: Encep Pranseda, Drs., M.Pd.
A30: X TE 3 | B30: Faridawaty Saragih, S.Si
A31: X TKI 1 | B31: Rita Rosita, S.Pd
A32: X TKI 2 | B32: Mila Karuniawati, S.Pd
A33: X TKI 3 | B33: Indria Listiani Ningrum, S.T
A34: X TKI 4 | B34: Ahmad Bustomi Sahrul, S.Pd
A35: X TKI 5 | B35: Asep Saeful Rohman, S.Ag

Sheet SERTIFIKAT (hidden)
E3: SERTIFIKAT | AN3: 77 | AO3: =602-526 -> 76
AN4: =158-77 -> 81 | AO4: =671-602 -> 69
AN5: =230-158 -> 72 | AO5: =821-671 -> 150
B6: Diberikan Kepada | AN6: =379-230 -> 149 | AO6: =898-821 -> 77
B7: =VLOOKUP($AK$17,DATASERTIFIKAT,DATA!E2) -> RAYHAN RAMADAN | AN7: =526-379 -> 147
B8: ="NIS : "&VLOOKUP($AK$17,DATASERTIFIKAT,DATA!F2) -> NIS : 18190204
B10: Sebagai | AD10: JURUSAN | AJ10: HALAMAN CETAK
B11: Peringkat pertama | AJ11: Dari data ke | AK11: 691
B13: Pada Kelas XII TKJ 1 Semester Ganjil Tahun Pelajaran 2017/2018 Dengan Rata-rata Nilai 84,1 | AJ13: Sampai data ke | AK13: 695 | AN13: =72+149 -> 221 | AO13: =77+81+150+77 -> 385
B14: Semoga Prestasi Yang Diraih Menjadi Motivasi Untuk Meraih Kesuksesan Di Masa Yang Akan Datang | AN14: =147+76+69 -> 292
AJ16: TAMPILAN DATA
V17: Kepala SMKN 1 Karawang, | AJ17: Nomor Urut | AK17: 240
AJ20: =VLOOKUP($AK$17,DATASERTIFIKAT,DATA!E2) -> RAYHAN RAMADAN | AP20: A | AQ20: 4 | AV20: 1 | AW20: D
V21: Drs. Agus Rukmawan, S.IP, M.M
V22: NIP. 19611111 198603 1 008
AB34: 138

Sheet DATA
A1: NO. | B1: CLASS ID | C1: SORT | D1: KELAS | E1: NAMA SISWA | F1: NIS | G1: NISN | H1: PENGETAHUAN 1 | I1: KETERAMPILAN 1 | J1: PENGETAHUAN 2 | K1: KETERAMPILAN 2
A2: 1 | B2: =A2+1 -> 2 | C2: =B2+1 -> 3 | D2: 4 | E2: 5 | F2: 6 | G2: 7 | H2: 8 | I2: 9 | J2: 10 | K2: 11
A3: 1 | B3: =D3&"-"&C3 -> X TKP 1-1 | C3: 1 | D3: X TKP 1 | E3: ABDUL KARIM | F3: 18190001 | G3: 0032989692 | H3: 75 | I3: 80 | J3: 83 | K3: 86
A4: =A3+1 -> 2 | B4: X TKP 1-2 | C4: =IF(D3=D4,C3+1,1) -> 2 | D4: X TKP 1 | E4: AIP ABDUL SUNANDAR | F4: 18190002 | G4: 0030065657 | H4: 83 | I4: 86 | J4: 85 | K4: 86
A5: =A4+1 -> 3 | B5: =D5&"-"&C5 -> X TKP 1-3 | C5: =IF(D4=D5,C4+1,1) -> 3 | D5: X TKP 1 | E5: ARYA FADEL HAKIM | F5: 18190003 | G5: 0021248937
A6: 4 | B6: X TKP 1-4 | C6: 4 | D6: X TKP 1 | E6: DESI | F6: 18190004 | G6: 0038817973
A7: 5 | B7: X TKP 1-5 | C7: 5 | D7: X TKP 1 | E7: DIAN LAURAINE ANAKKU | F7: 18190005 | G7: 0039899018
A8: 6 | B8: X TKP 1-6 | C8: 6 | D8: X TKP 1 | E8: DIMAS MAUSUL HAQIKI | F8: 18190006 | G8: 0032766311
A9: 7 | B9: X TKP 1-7 | C9: 7 | D9: X TKP 1 | E9: FISKA PUTRI DEWANI | F9: 18190007 | G9: 0031467706
A10: 8 | B10: X TKP 1-8 | C10: 8 | D10: X TKP 1 | E10: GELAR MAULANA MEDIA | F10: 18190008 | G10: 0029016811
A11: 9 | B11: X TKP 1-9 | C11: 9 | D11: X TKP 1 | E11: GILANG ILHAM PERMANA | F11: 18190009 | G11: 0034779820
A12: 10 | B12: X TKP 1-10 | C12: 10 | D12: X TKP 1 | E12: GILANG PRIA AMPATANA | F12: 18190010 | G12: 0022288946
A13: 11 | B13: X TKP 1-11 | C13: 11 | D13: X TKP 1 | E13: INDAH NURHALIZAH | F13: 18190011 | G13: 0030065656
A14: 12 | B14: X TKP 1-12 | C14: 12 | D14: X TKP 1 | E14: LUSIAWATI | F14: 18190013 | G14: 0037391018
A15: 13 | B15: X TKP 1-13 | C15: 13 | D15: X TKP 1 | E15: MOHAMAD SYAHRUL RIZKY | F15: 18190014 | G15: -
A16: 14 | B16: X TKP 1-14 | C16: 14 | D16: X TKP 1 | E16: MUHAMMAD HAFIZH R | F16: 18190015 | G16: 0032783340
A17: 15 | B17: X TKP 1-15 | C17: 15 | D17: X TKP 1 | E17: MUHAMMAD RAFLY DWI RAHMAN | F17: 18190016 | G17: 0034779821
A18: 16 | B18: X TKP 1-16 | C18: 16 | D18: X TKP 1 | E18: MUHAMMAD RAIHAN | F18: 18190017 | G18: 0032491085
A19: 17 | B19: X TKP 1-17 | C19: 17 | D19: X TKP 1 | E19: MUHAMMAD RAIHANDY FAUZAN | F19: 18190018 | G19: 0039736055
A20: 18 | B20: X TKP 1-18 | C20: 18 | D20: X TKP 1 | E20: MUHAMMAD SALMAN | F20: 18190019 | G20: 0036773152
A21: 19 | B21: X TKP 1-19 | C21: 19 | D21: X TKP 1 | E21: MULYANTI | F21: 18190020 | G21: 0032741260
A22: 20 | B22: X TKP 1-20 | C22: 20 | D22: X TKP 1 | E22: NANA ARDIANSYAH | F22: 18190021 | G22: 0037748593
A23: 21 | B23: X TKP 1-21 | C23: 21 | D23: X TKP 1 | E23: NOVIA RAMADANI | F23: 18190022 | G23: 0039684937
A24: 22 | B24: X TKP 1-22 | C24: 22 | D24: X TKP 1 | E24: PUSPITA SARI | F24: 18190023 | G24: 0036607091
A25: 23 | B25: X TKP 1-23 | C25: 23 | D25: X TKP 1 | E25: QORI ABDUL MANSUR | F25: 18190024 | G25: 0037815117
A26: 24 | B26: X TKP 1-24 | C26: 24 | D26: X TKP 1 | E26: RAMLAN | F26: 18190025 | G26: 0031113948
A27: 25 | B27: X TKP 1-25 | C27: 25 | D27: X TKP 1 | E27: RARAS PRAMESTI | F27: 18190026 | G27: 0034805619
A28: 26 | B28: X TKP 1-26 | C28: 26 | D28: X TKP 1 | E28: RITA | F28: 18190027 | G28: 0034644760
A29: 27 | B29: X TKP 1-27 | C29: 27 | D29: X TKP 1 | E29: SALSABILA PUTRI SUHENDAR | F29: 18190028 | G29: 0037533933
A30: 28 | B30: X TKP 1-28 | C30: 28 | D30: X TKP 1 | E30: SITI ROSYDAH RUSTANDI | F30: 18190029 | G30: 0027950065
A31: 29 | B31: X TKP 1-29 | C31: 29 | D31: X TKP 1 | E31: SUKMA NOVIANTI | F31: 18190030 | G31: 0020500843
A32: 30 | B32: X TKP 1-30 | C32: 30 | D32: X TKP 1 | E32: SUSILAWATI | F32: 18190031 | G32: 0034132335
A33: 31 | B33: X TKP 1-31 | C33: 31 | D33: X TKP 1 | E33: TAUFIKURROHMAN ARDHAN | F33: 18190032 | G33: 0026074299
A34: 32 | B34: X TKP 1-32 | C34: 32 | D34: X TKP 1 | E34: WINDA | F34: 18190033 | G34: 0028658455
A35: 33 | B35: X TKP 1-33 | C35: 33 | D35: X TKP 1 | E35: YOSUA ANDREAS | F35: 18190034 | G35: 0023965427
A36: 34 | B36: X TKP 1-34 | C36: 34 | D36: X TKP 1 | E36: ZILDJIAN APRILIA | F36: 18190035 | G36: 0038657643
A37: 35 | B37: X TKP 2-1 | C37: 1 | D37: X TKP 2 | E37: ABDUL MAJID ALHISNA | F37: 18190036 | G37: 0034811338
A38: 36 | B38: X TKP 2-2 | C38: 2 | D38: X TKP 2 | E38: ANISA PUTRI HIDAYAT | F38: 18190037 | G38: 0032798639
A39: 37 | B39: X TKP 2-3 | C39: 3 | D39: X TKP 2 | E39: ANNISA PUTRI RAHAYU | F39: 18190038 | G39: 0030065584
A40: 38 | B40: X TKP 2-4 | C40: 4 | D40: X TKP 2 | E40: DILAN YUSUF ISLAMI | F40: 18190039 | G40: 0034779777
A41: 39 | B41: X TKP 2-5 | C41: 5 | D41: X TKP 2 | E41: DINA KHAIRUNNISA YARIS | F41: 18190040 | G41: 0032865899
A42: 40 | B42: X TKP 2-6 | C42: 6 | D42: X TKP 2 | E42: FARGAS FIRGIA | F42: 18190041 | G42: 0032615676
A43: 41 | B43: X TKP 2-7 | C43: 7 | D43: X TKP 2 | E43: FATHIYAH AIDA RIZMA | F43: 18190042 | G43: 0033471088
A44: 42 | B44: X TKP 2-8 | C44: 8 | D44: X TKP 2 | E44: FAUJI SETIAWAN | F44: 18190043 | G44: 0029435910
A45: 43 | B45: X TKP 2-9 | C45: 9 | D45: X TKP 2 | E45: FIRLI HILDAN FAHRURROZI | F45: 18190044 | G45: 0048780786
A46: 44 | B46: X TKP 2-10 | C46: 10 | D46: X TKP 2 | E46: IHDA PEBRIYANTI | F46: 18190046 | G46: 0031761174
A47: 45 | B47: X TKP 2-11 | C47: 11 | D47: X TKP 2 | E47: MAHESA SOFIAN SAPUTRA | F47: 18190047 | G47: 0035079626
A48: 46 | B48: X TKP 2-12 | C48: 12 | D48: X TKP 2 | E48: MARDANI | F48: 18190048 | G48: 0023849189
A49: 47 | B49: X TKP 2-13 | C49: 13 | D49: X TKP 2 | E49: MUCH FACHREADZKY RIDWAN | F49: 18190049 | G49: 3215015405
A50: 48 | B50: X TKP 2-14 | C50: 14 | D50: X TKP 2 | E50: MUHAMAD ZIHAN AWALIADIN | F50: 18190050 | G50: 0031002445
A51: 49 | B51: X TKP 2-15 | C51: 15 | D51: X TKP 2 | E51: MUHAMMAD FAUZAN MAKARIM | F51: 18190051 | G51: 0035316805
A52: 50 | B52: X TKP 2-16 | C52: 16 | D52: X TKP 2 | E52: MURSYID HANIF ARROJI | F52: 18190052 | G52: 0036243475
A53: 51 | B53: X TKP 2-17 | C53: 17 | D53: X TKP 2 | E53: NADILA AGUSTIN | F53: 18190053 | G53: 0039449407
A54: 52 | B54: X TKP 2-18 | C54: 18 | D54: X TKP 2 | E54: NAFIDZ ALIFAH MUKHRIJ PURNOMO | F54: 18190054 | G54: 0039553661
A55: 53 | B55: X TKP 2-19 | C55: 19 | D55: X TKP 2 | E55: RAYNALDO APRILIANO | F55: 18190055 | G55: 0032756888
A56: 54 | B56: X TKP 2-20 | C56: 20 | D56: X TKP 2 | E56: REVA ACHMAD ABQARI | F56: 18190056 | G56: 0031024779
A57: 55 | B57: X TKP 2-21 | C57: 21 | D57: X TKP 2 | E57: RICKY FAUZI | F57: 18190057 | G57: 0032516580
A58: 56 | B58: X TKP 2-22 | C58: 22 | D58: X TKP 2 | E58: RIFKY AHMAD RIANTO | F58: 18190058 | G58: 0034579920
A59: 57 | B59: X TKP 2-23 | C59: 23 | D59: X TKP 2 | E59: RIKI | F59: 18190059 | G59: 0027130013
A60: 58 | B60: X TKP 2-24 | C60: 24 | D60: X TKP 2 | E60: RIZKI MAULANA | F60: 18190060 | G60: 0039327074
A61: 59 | B61: X TKP 2-25 | C61: 25 | D61: X TKP 2 | E61: RIZKY MAULANA | F61: 18190061 | G61: 0027881567
A62: 60 | B62: X TKP 2-26 | C62: 26 | D62: X TKP 2 | E62: SAHRUL S RAHMADAN | F62: 18190062 | G62: 0035678900
A63: 61 | B63: X TKP 2-27 | C63: 27 | D63: X TKP 2 | E63: SANDI RUKMANA WAHYU ALAMSYAH | F63: 18190063 | G63: 0034283569
A64: 62 | B64: X TKP 2-28 | C64: 28 | D64: X TKP 2 | E64: SUCI NURAENI | F64: 18190065 | G64: 0011360536
A65: 63 | B65: X TKP 2-29 | C65: 29 | D65: X TKP 2 | E65: SUPARDI | F65: 18190066 | G65: 0035124599
A66: 64 | B66: X TKP 2-30 | C66: 30 | D66: X TKP 2 | E66: WAHYU AGUNG PRABOWO | F66: 18190067 | G66: 0029988519
A67: 65 | B67: X TKP 2-31 | C67: 31 | D67: X TKP 2 | E67: WIJDAN IBTISYAM | F67: 18190069 | G67: 0038671161
A68: 66 | B68: X TKP 2-32 | C68: 32 | D68: X TKP 2 | E68: YANUAR SILO HANDOYO | F68: 18190070 | G68: 0032611655
A69: =A68+1 -> 67 | B69: =D69&"-"&C69 -> X TKP 2-33 | C69: =IF(D68=D69,C68+1,1) -> 33 | D69: X TKP 2 | E69: RENDRI NUZUL A'RIZKY | F69: 17180063 | G69: 0002849791
A70: 68 | B70: X TK 1-1 | C70: 1 | D70: X TK 1 | E70: ABDUL HAFIDZ ZIAD FAESOL | F70: 18190071 | G70: 0039860796
A71: 69 | B71: X TK 1-2 | C71: 2 | D71: X TK 1 | E71: ADRIAN TEGAR FITRAYANSYAH | F71: 18190072 | G71: 0020786656
A72: 70 | B72: X TK 1-3 | C72: 3 | D72: X TK 1 | E72: ALWIANSYAH | F72: 18190073 | G72: 0032546772
A73: 71 | B73: X TK 1-4 | C73: 4 | D73: X TK 1 | E73: AZ ZAHRA DINDA KAMALIA | F73: 18190074 | G73: 0034418225
A74: 72 | B74: X TK 1-5 | C74: 5 | D74: X TK 1 | E74: BARA NAUFAL HILMAN | F74: 18190075 | G74: 0028174239
A75: 73 | B75: X TK 1-6 | C75: 6 | D75: X TK 1 | E75: BAYU MAULANA | F75: 18190076 | G75: 0037941012
A76: 74 | B76: X TK 1-7 | C76: 7 | D76: X TK 1 | E76: DARYADI | F76: 18190077 | G76: 0026277470
A77: 75 | B77: X TK 1-8 | C77: 8 | D77: X TK 1 | E77: DHAFA SEPTIAN PUFERTA HARYANTO | F77: 18190078 | G77: 0034478016
A78: 76 | B78: X TK 1-9 | C78: 9 | D78: X TK 1 | E78: DIENNA AGUSTIANA FITRIANA DEWI | F78: 18190079 | G78: 0036583246
A79: 77 | B79: X TK 1-10 | C79: 10 | D79: X TK 1 | E79: ELIS KHOERUNISA | F79: 18190080 | G79: 0033723028
A80: 78 | B80: X TK 1-11 | C80: 11 | D80: X TK 1 | E80: FADLAH FAQIH MASHOBIH | F80: 18190081 | G80: 0025939069
A81: 79 | B81: X TK 1-12 | C81: 12 | D81: X TK 1 | E81: FAJAR TRI NUGROHO | F81: 18190082 | G81: 0037233269
A82: 80 | B82: X TK 1-13 | C82: 13 | D82: X TK 1 | E82: GALIH SETIA NUGRAHA | F82: 18190083 | G82: 0034854147
A83: 81 | B83: X TK 1-14 | C83: 14 | D83: X TK 1 | E83: HAIKAL ZAENUL RAHMAT | F83: 18190084 | G83: 0020945997
A84: 82 | B84: X TK 1-15 | C84: 15 | D84: X TK 1 | E84: HAMAWIYAH MUZAHARA | F84: 18190085 | G84: 0038473396
A85: 83 | B85: X TK 1-16 | C85: 16 | D85: X TK 1 | E85: HARISMA HENDRIKA PERTIWI | F85: 18190086 | G85: 0033771811
A86: 84 | B86: X TK 1-17 | C86: 17 | D86: X TK 1 | E86: IQBAL SYAHID FIRMANSYAH | F86: 18190087 | G86: 0036799967
A87: 85 | B87: X TK 1-18 | C87: 18 | D87: X TK 1 | E87: KHOLIL RAMDAN | F87: 18190088 | G87: 0021482684
A88: 86 | B88: X TK 1-19 | C88: 19 | D88: X TK 1 | E88: LENI FITRIA | F88: 18190089 | G88: 0034945419
A89: 87 | B89: X TK 1-20 | C89: 20 | D89: X TK 1 | E89: MARIO ROLIANSYAH | F89: 18190090 | G89: 0039724970
A90: 88 | B90: X TK 1-21 | C90: 21 | D90: X TK 1 | E90: MUHAMMAD FARIZ | F90: 18190091 | G90: 0033872102
A91: 89 | B91: X TK 1-22 | C91: 22 | D91: X TK 1 | E91: MUHAMMAD MAULANA NUGRAHA | F91: 18190092 | G91: 0035895245
A92: 90 | B92: X TK 1-23 | C92: 23 | D92: X TK 1 | E92: MUHAMMAD ZIDAN | F92: 18190093 | G92: 0034441925
A93: 91 | B93: X TK 1-24 | C93: 24 | D93: X TK 1 | E93: NOVA | F93: 18190094 | G93: 0036985185
A94: 92 | B94: X TK 1-25 | C94: 25 | D94: X TK 1 | E94: NOVAL ARDIANTO | F94: 18190095 | G94: 0031971609
A95: 93 | B95: X TK 1-26 | C95: 26 | D95: X TK 1 | E95: NOVI | F95: 18190096 | G95: 0031580083
A96: 94 | B96: X TK 1-27 | C96: 27 | D96: X TK 1 | E96: NURFITRIA DESWITA PUTRI | F96: 18190097 | G96: 0026625233
A97: 95 | B97: X TK 1-28 | C97: 28 | D97: X TK 1 | E97: REVINA NOVIA ANINDARA | F97: 18190098 | G97: 0024435569
A98: 96 | B98: X TK 1-29 | C98: 29 | D98: X TK 1 | E98: REZA ARDIANSYAH | F98: 18190099 | G98: 0038234294
A99: 97 | B99: X TK 1-30 | C99: 30 | D99: X TK 1 | E99: REZA NUGRAHA | F99: 18190100 | G99: 0036385485
A100: 98 | B100: X TK 1-31 | C100: 31 | D100: X TK 1 | E100: RIFDA NUR SHINTA | F100: 18190101 | G100: 0020564695
A101: 99 | B101: X TK 1-32 | C101: 32 | D101: X TK 1 | E101: RIFKI IRAWAN | F101: 18190102 | G101: 0028772684
A102: 100 | B102: X TK 1-33 | C102: 33 | D102: X TK 1 | E102: RIYAN HIDAYAT | F102: 18190103 | G102: 0035151107
A103: 101 | B103: X TK 1-34 | C103: 34 | D103: X TK 1 | E103: SILVYIANIH KARDIAH | F103: 18190104 | G103: 0028931086
A104: 102 | B104: X TK 1-35 | C104: 35 | D104: X TK 1 | E104: TEGAR NUGRAHA | F104: 18190105 | G104: 0031129106
A105: 103 | B105: X TK 1-36 | C105: 36 | D105: X TK 1 | E105: ZENITHA PUJI KHAIRINA | F105: 18190106 | G105: 0033297000
A106: 104 | B106: X TK 2-1 | C106: 1 | D106: X TK 2 | E106: AHMAD HIDAYAT | F106: 18190107 | G106: 0037381970
A107: 105 | B107: X TK 2-2 | C107: 2 | D107: X TK 2 | E107: ALDY RIVALDY DE FRETES | F107: 18190108 | G107: 0039425024
A108: 106 | B108: X TK 2-3 | C108: 3 | D108: X TK 2 | E108: ALVINDRA PUTRA ARDHANA | F108: 18190109 | G108: 0033297054
A109: 107 | B109: X TK 2-4 | C109: 4 | D109: X TK 2 | E109: AMAR ASSHIDDIQIE HIDAYAT | F109: 18190110 | G109: 0021220841
A110: 108 | B110: X TK 2-5 | C110: 5 | D110: X TK 2 | E110: ANDIKA DWI PAMUNGKAS | F110: 18190111 | G110: 0031971571
A111: 109 | B111: X TK 2-6 | C111: 6 | D111: X TK 2 | E111: ARIF FIRDAOS | F111: 18190112 | G111: 0040430429
A112: 110 | B112: X TK 2-7 | C112: 7 | D112: X TK 2 | E112: DANI FRASETIA | F112: 18190113 | G112: 0026915433
A113: 111 | B113: X TK 2-8 | C113: 8 | D113: X TK 2 | E113: DEDY RAHMAT | F113: 18190114 | G113: 0026612814
A114: 112 | B114: X TK 2-9 | C114: 9 | D114: X TK 2 | E114: DHANUAR HUSSEIN | F114: 18190115 | G114: 0035957359
A115: 113 | B115: X TK 2-10 | C115: 10 | D115: X TK 2 | E115: DIDI MULYADI | F115: 18190116 | G115: 0034518526
A116: 114 | B116: X TK 2-11 | C116: 11 | D116: X TK 2 | E116: FADLI AJRILANA AHMAD | F116: 18190117 | G116: 0039705028
A117: 115 | B117: X TK 2-12 | C117: 12 | D117: X TK 2 | E117: FAHRUL MUAZID | F117: 18190118 | G117: 0033395000
A118: 116 | B118: X TK 2-13 | C118: 13 | D118: X TK 2 | E118: FAUZAN LUQMANUL HAKIM | F118: 18190119 | G118: 0039219892
A119: 117 | B119: X TK 2-14 | C119: 14 | D119: X TK 2 | E119: FIKRI RAFI PRATAMA ABDUL KADIR | F119: 18190120 | G119: 0026063513
A120: 118 | B120: X TK 2-15 | C120: 15 | D120: X TK 2 | E120: IBNU PADILAH | F120: 18190121 | G120: 0039781225
A121: 119 | B121: X TK 2-16 | C121: 16 | D121: X TK 2 | E121: IRFAN | F121: 18190122 | G121: 0033246285
A122: 120 | B122: X TK 2-17 | C122: 17 | D122: X TK 2 | E122: IZUMI ZAHRA HARIRY | F122: 18190123 | G122: 0042995074
A123: 121 | B123: X TK 2-18 | C123: 18 | D123: X TK 2 | E123: JAY MAULANA | F123: 18190124 | G123: 0035862559
A124: 122 | B124: X TK 2-19 | C124: 19 | D124: X TK 2 | E124: JEREMIA LEONARDO HUTASOIT | F124: 18190125 | G124: 0022126206
A125: 123 | B125: X TK 2-20 | C125: 20 | D125: X TK 2 | E125: KUNNIATUZ ZAHRA FIRDAUSI | F125: 18190126 | G125: 0036944087
A126: 124 | B126: X TK 2-21 | C126: 21 | D126: X TK 2 | E126: MUHAMAD RAKA MAULANA ZULKARNAEN | F126: 18190127 | G126: 0038657650
A127: 125 | B127: X TK 2-22 | C127: 22 | D127: X TK 2 | E127: MUHAMAD ROSIDI | F127: 18190128 | G127: 0032834145
A128: 126 | B128: X TK 2-23 | C128: 23 | D128: X TK 2 | E128: MUHAMMAD FARIZ ALVIANTO | F128: 18190129 | G128: 0026612794
A129: 127 | B129: X TK 2-24 | C129: 24 | D129: X TK 2 | E129: MUHAMMAD RIZKI ALAMSYAH | F129: 18190130 | G129: 0035269974
A130: 128 | B130: X TK 2-25 | C130: 25 | D130: X TK 2 | E130: NURDINA RAHMI | F130: 18190132 | G130: 0033181044
A131: 129 | B131: X TK 2-26 | C131: 26 | D131: X TK 2 | E131: PEBRIYANTI KUSNADI PRATIWI | F131: 18190133 | G131: 0034460885
A132: 130 | B132: X TK 2-27 | C132: 27 | D132: X TK 2 | E132: RAMDHANI RAFI TRIE MAULANA | F132: 18190134 | G132: 0034779899
A133: =A132+1 -> 131 | B133: =D133&"-"&C133 -> X TK 2-28 | C133: =IF(D132=D133,C132+1,1) -> 28 | D133: X TK 2 | E133: RISKY RAHMAWATI | F133: 18190135 | G133: 0039126570
A134: 132 | B134: X TK 2-29 | C134: 29 | D134: X TK 2 | E134: RIZKY AGUNG RAMADHAN | F134: 18190136 | G134: 0022781741
A135: 133 | B135: X TK 2-30 | C135: 30 | D135: X TK 2 | E135: RIZKY PRATAMA | F135: 18190137 | G135: 0035503179
A136: 134 | B136: X TK 2-31 | C136: 31 | D136: X TK 2 | E136: SITI KHOERUNISA | F136: 18190138 | G136: 0032615747
A137: 135 | B137: X TK 2-32 | C137: 32 | D137: X TK 2 | E137: SUPRIYATNA | F137: 18190139 | G137: 0035126576
A138: 136 | B138: X TK 2-33 | C138: 33 | D138: X TK 2 | E138: TEGAR MAULANA ISHAK | F138: 18190140 | G138: 0029791431
A139: 137 | B139: X TK 2-34 | C139: 34 | D139: X TK 2 | E139: TITA APRIANTI | F139: 18190141 | G139: 0034997753
A140: 138 | B140: X TK 2-35 | C140: 35 | D140: X TK 2 | E140: TRI SALISTIA PEBRIAN | F140: 18190142 | G140: 0034966763
A141: 139 | B141: X TM 1-1 | C141: 1 | D141: X TM 1 | E141: AHMAD FAJAR SAEFUDIN | F141: 18190143 | G141: 0033315735
A142: 140 | B142: X TM 1-2 | C142: 2 | D142: X TM 1 | E142: AHMAD NURYUSUP HANAFI | F142: 18190144 | G142: 0039678050
A143: 141 | B143: X TM 1-3 | C143: 3 | D143: X TM 1 | E143: ALFAN GOFUR | F143: 18190145 | G143: 0028555270
A144: 142 | B144: X TM 1-4 | C144: 4 | D144: X TM 1 | E144: ARIEL FERDIANSYAH | F144: 18190146 | G144: 0024435312
A145: 143 | B145: X TM 1-5 | C145: 5 | D145: X TM 1 | E145: CEPI ARIS | F145: 18190147 | G145: 0021323779
A146: 144 | B146: X TM 1-6 | C146: 6 | D146: X TM 1 | E146: CITA RAMDAN | F146: 18190148 | G146: 0029197980
A147: 145 | B147: X TM 1-7 | C147: 7 | D147: X TM 1 | E147: DIAS PRASSETIO PADILAH | F147: 18190149 | G147: 0039019415
A148: 146 | B148: X TM 1-8 | C148: 8 | D148: X TM 1 | E148: DIDIK YULIANTO | F148: 18190150 | G148: 0025503684
A149: 147 | B149: X TM 1-9 | C149: 9 | D149: X TM 1 | E149: DWI RAHARJO | F149: 18190151 | G149: 0026255456
A150: 148 | B150: X TM 1-10 | C150: 10 | D150: X TM 1 | E150: DZULFIQRY | F150: 18190152 | G150: 0033297086
A151: 149 | B151: X TM 1-11 | C151: 11 | D151: X TM 1 | E151: HAPID JANUAR SYAPUTRA | F151: 18190153 | G151: 0028198001
A152: 150 | B152: X TM 1-12 | C152: 12 | D152: X TM 1 | E152: INDRA CIPTAWIJAYA | F152: 18190154 | G152: 0030498171
A153: 151 | B153: X TM 1-13 | C153: 13 | D153: X TM 1 | E153: IRVAN MAULANA | F153: 18190155 | G153: 0026559889
A154: 152 | B154: X TM 1-14 | C154: 14 | D154: X TM 1 | E154: JAJANG | F154: 18190156 | G154: 0027367097
A155: 153 | B155: X TM 1-15 | C155: 15 | D155: X TM 1 | E155: JODI NUGRAHA | F155: 18190157 | G155: 0032516550
A156: 154 | B156: X TM 1-16 | C156: 16 | D156: X TM 1 | E156: KARTIKA ASIH | F156: 18190158 | G156: 0033771819
A157: 155 | B157: X TM 1-17 | C157: 17 | D157: X TM 1 | E157: MOCHAMAD ALFIAN ALPARIZKI | F157: 18190159 | G157: 0035628027
A158: 156 | B158: X TM 1-18 | C158: 18 | D158: X TM 1 | E158: MOCHAMAD ANDRE FITRIYANTO | F158: 18190160 | G158: 0026255452
A159: 157 | B159: X TM 1-19 | C159: 19 | D159: X TM 1 | E159: MUHAMAD FAJAR RIYANTO | F159: 18190161 | G159: 0020922742
A160: 158 | B160: X TM 1-20 | C160: 20 | D160: X TM 1 | E160: MUHAMMAD ARI ALFARIZI | F160: 18190162 | G160: 0034846486
A161: 159 | B161: X TM 1-21 | C161: 21 | D161: X TM 1 | E161: MUHAMMAD DAFA NURHIDAYAT | F161: 18190163 | G161: 0036799957
A162: 160 | B162: X TM 1-22 | C162: 22 | D162: X TM 1 | E162: MUHAMMAD RIZAL NUR AKBAR | F162: 18190164 | G162: 0039081270
A163: 161 | B163: X TM 1-23 | C163: 23 | D163: X TM 1 | E163: MUHAMMAD YAZID FADHILLAH | F163: 18190165 | G163: 0034883253
A164: 162 | B164: X TM 1-24 | C164: 24 | D164: X TM 1 | E164: NANANG KURMANI | F164: 18190166 | G164: 0031509468
A165: 163 | B165: X TM 1-25 | C165: 25 | D165: X TM 1 | E165: RADEN RIZKI RAFI ARISSAPUTRA | F165: 18190167 | G165: 0034573805
A166: 164 | B166: X TM 1-26 | C166: 26 | D166: X TM 1 | E166: RAFA NAUFAL ISHAM SUBHANA | F166: 18190168 | G166: 0038219075
A167: 165 | B167: X TM 1-27 | C167: 27 | D167: X TM 1 | E167: RAFLY RIYADHUL NUR SYAFWAN | F167: 18190169 | G167: 0037012723
A168: 166 | B168: X TM 1-28 | C168: 28 | D168: X TM 1 | E168: RAIHAN RAMDHANI | F168: 18190170 | G168: 0023183214
A169: 167 | B169: X TM 1-29 | C169: 29 | D169: X TM 1 | E169: REZA AFRIANSYAH | F169: 18190171 | G169: 0026255054
A170: 168 | B170: X TM 1-30 | C170: 30 | D170: X TM 1 | E170: SARIP HIDAYAT | F170: 18190172 | G170: 0032615741
A171: 169 | B171: X TM 1-31 | C171: 31 | D171: X TM 1 | E171: SULIS SETIO HADI | F171: 18190173 | G171: 0036297287
A172: 170 | B172: X TM 1-32 | C172: 32 | D172: X TM 1 | E172: TAOFIK BILLAHI | F172: 18190174 | G172: 0039663421
A173: 171 | B173: X TM 1-33 | C173: 33 | D173: X TM 1 | E173: TEDI SETIADI | F173: 18190175 | G173: 0038705461
A174: 172 | B174: X TM 1-34 | C174: 34 | D174: X TM 1 | E174: TISNA SAHRUN | F174: 18190176 | G174: 0038397476
A175: 173 | B175: X TM 1-35 | C175: 35 | D175: X TM 1 | E175: WAHYU RAMDHANI | F175: 18190177 | G175: 0023111975
A176: 174 | B176: X TM 1-36 | C176: 36 | D176: X TM 1 | E176: WINDA LISTIANI | F176: 18190178 | G176: 0027543098
A177: 175 | B177: X TM 2-1 | C177: 1 | D177: X TM 2 | E177: ADI KARYA HUSADA | F177: 18190179 | G177: 0028312577
A178: 176 | B178: X TM 2-2 | C178: 2 | D178: X TM 2 | E178: AHMAD MUAZIR | F178: 18190180 | G178: 0021085373
A179: 177 | B179: X TM 2-3 | C179: 3 | D179: X TM 2 | E179: AHMAD SHOIMUN DZULFIQOR | F179: 18190181 | G179: 0046675202
A180: 178 | B180: X TM 2-4 | C180: 4 | D180: X TM 2 | E180: AKBAR NUR ALHAEN | F180: 18190182 | G180: 0033297352
A181: 179 | B181: X TM 2-5 | C181: 5 | D181: X TM 2 | E181: ALDIE SHEVA SUGARA | F181: 18190183 | G181: 0003167888
A182: 180 | B182: X TM 2-6 | C182: 6 | D182: X TM 2 | E182: ALVIN KAKA YUDISTIRA | F182: 18190184 | G182: 0044270357
A183: 181 | B183: X TM 2-7 | C183: 7 | D183: X TM 2 | E183: ANJANI SYAWALIYAH | F183: 18190185 | G183: 0024114474
A184: 182 | B184: X TM 2-8 | C184: 8 | D184: X TM 2 | E184: DANDI KUSWARA | F184: 18190186 | G184: 0031046477
A185: 183 | B185: X TM 2-9 | C185: 9 | D185: X TM 2 | E185: DENA FIRMANSYAH | F185: 18190187 | G185: 0022409377
A186: 184 | B186: X TM 2-10 | C186: 10 | D186: X TM 2 | E186: EDI GUNAWAN | F186: 18190188 | G186: 0028854701
A187: 185 | B187: X TM 2-11 | C187: 11 | D187: X TM 2 | E187: FAUZI RAKA PRATAMA | F187: 18190189 | G187: 0037925648
A188: 186 | B188: X TM 2-12 | C188: 12 | D188: X TM 2 | E188: FERDINATA | F188: 18190190 | G188: 0028964558
A189: 187 | B189: X TM 2-13 | C189: 13 | D189: X TM 2 | E189: FIKRI ANISAH | F189: 18190191 | G189: 0025006576
A190: 188 | B190: X TM 2-14 | C190: 14 | D190: X TM 2 | E190: FRANSISKUS SITOHANG | F190: 18190192 | G190: 0022292984
A191: 189 | B191: X TM 2-15 | C191: 15 | D191: X TM 2 | E191: HERI SETIAWAN | F191: 18190193 | G191: 0035740047
A192: 190 | B192: X TM 2-16 | C192: 16 | D192: X TM 2 | E192: ILYAS TIA FIRMANSYAH | F192: 18190194 | G192: 0035168648
A193: 191 | B193: X TM 2-17 | C193: 17 | D193: X TM 2 | E193: INDRA PERMANA | F193: 18190195 | G193: 0031722734
A194: 192 | B194: X TM 2-18 | C194: 18 | D194: X TM 2 | E194: JODI ADITTYA INDRAWAN | F194: 18190196 | G194: 0025129558
A195: 193 | B195: X TM 2-19 | C195: 19 | D195: X TM 2 | E195: MARIAH | F195: 18190197 | G195: 0044105309
A196: 194 | B196: X TM 2-20 | C196: 20 | D196: X TM 2 | E196: MUHAMAD ABDURROHIM | F196: 18190198 | G196: 0047858895
A197: =A196+1 -> 195 | B197: =D197&"-"&C197 -> X TM 2-21 | C197: =IF(D196=D197,C196+1,1) -> 21 | D197: X TM 2 | E197: MUHAMAD IRFAN | F197: 18190199 | G197: 0036080982
A198: 196 | B198: X TM 2-22 | C198: 22 | D198: X TM 2 | E198: MUHAMMAD RIZKI RAMADHAN | F198: 18190200 | G198: 0031729443
A199: 197 | B199: X TM 2-23 | C199: 23 | D199: X TM 2 | E199: MUHAMMAD SHOLIHUDIN | F199: 18190201 | G199: 0032490632
A200: 198 | B200: X TM 2-24 | C200: 24 | D200: X TM 2 | E200: PADLI APRIYANA | F200: 18190202 | G200: 0036387827
... 648 more rows

Sheet KHB
B2: PEMERINTAH DAERAH PROVINSI JAWA BARAT
B3: DINAS PENDIDIKAN
B4: CABANG DINAS PENDIDIKAN WILAYAH IV
B5: SEKOLAH MENENGAH KEJURUAN NEGERI 1 KARAWANG
B6: Jalan Pangkal Perjuangan By Pass Telp. 0267-401651
B7: Website: www.smkn1karawang.sch.id
B8: Email : smkn1karawang@gmail.com | M8: TAMPILAN DATA
B9: Karawang - 41316 | M9: Nomor Urut | N9: 35
B12: KARTU HASIL BELAJAR
B13: TAHUN PELAJARAN 2018/2019 | M13: HALAMAN CETAK
B14: MATA PELAJARAN PENDIDIKAN LINGKUNGAN HIDUP | M14: Dari data ke | N14: 2
M16: Sampai data ke | N16: 2
B17: Nama Peserta Didik | D17: : | E17: =VLOOKUP($N$9,DATA_NILAI,DATA!E2) -> ABDUL MAJID ALHISNA
B18: Nomor Induk/NISN | D18: : | E18: =VLOOKUP($N$9,DATA_NILAI,DATA!F2)&" / "&VLOOKUP($N$9,DATA_NILAI,DATA!G2) -> 18190036 / 0034811338
B19: Kelas | D19: : | E19: =VLOOKUP($N$9,DATA_NILAI,DATA!D2) -> X TKP 2
B21: A. NILAI AKDEMIK
B22: NO | C22: SEMESTER | D22: PENGETAHUAN | F22: KETERAMPILAN | G22: NILAI AKHIR | H22: PREDIKAT | M22: BOBOT NILAI
B23: 1 | C23: Ganjil | D23: =VLOOKUP($N$9,DATA_NILAI,DATA!H2) -> 0 | F23: =VLOOKUP($N$9,DATA_NILAI,DATA!I2) -> 0 | G23: =ROUND(N23/100*D23+N24/100*F23,0) -> 0 | H23: =IFERROR(VLOOKUP(G23,TAB_PREDIKAT,3),"-") -> - | M23: P | N23: 50
B24: 2 | C24: Genap | D24: =VLOOKUP($N$9,DATA_NILAI,DATA!J2) -> 0 | F24: =VLOOKUP($N$9,DATA_NILAI,DATA!K2) -> 0 | G24: =ROUND(N23/100*D24+N24/100*F24,0) -> 0 | H24: =IFERROR(VLOOKUP(G24,TAB_PREDIKAT,3),"-") -> - | M24: K | N24: 50
B26: B. DESKRIPSI AKADEMIK
B27: NO | C27: SEMESTER | D27: DESKRIPSI NILAI
B28: 1 | C28: Ganjil | D28: =IFERROR(PROPER(E17)&" "&VLOOKUP(H23,DESK_NILAI,2,FALSE),"-") -> -
B29: 2 | C29: Genap | D29: =IFERROR(PROPER(E17)&" "&VLOOKUP(H24,DESK_NILAI,2,FALSE),"-") -> -
B32: Mengetahui, | G32: Karawang, 21 Juni 2019
B33: Orang Tua/Wali, | G33: Wali Kelas,
B37: _______________________________ | G37: =VLOOKUP(E19,TAB_WALAS,2,FALSE) -> Nuri Hastuti Nuryani, S.Pd
E39: Mengetahui :
E40: Kepala Sekolah, | K40: -
E44: Drs. Agus Rukmawan, S.IP, MM
E45: NIP 19611111 198603 1 008

Sheet Macro1 (hidden)
